[Event "44th Chess Olympiad Open 2022"]
[Site "Chennai"]
[Date "2022.08.07"]
[Round "9.18"]
[White "Taher, Yoseph Theolifus"]
[Black "Hammer, Jon Ludvig"]
[Result "1/2-1/2"]
[WhiteElo "2463"]
[BlackElo "2638"]
[Annotator "TA"]
[PlyCount "61"]
[EventDate "2022.??.??"]
[TimeControl "60"]

{[%evp 23,61,11,32,18,25,0,0,0,0,0,7,0,0,0,0,0,0,-68,-63,-77,-77,-108,-35,-31,
-20,-141,-29,-36,3,11,10,8,8,8,8,8,35,30,31,21]} 1. e4 {[%emt 0:00:13]} e5 {
[%emt 0:00:08]} 2. Nf3 {[%emt 0:00:06]} Nc6 {[%emt 0:00:05]} 3. Bb5 {[%emt 0:
00:00]} Nf6 {[%emt 0:00:07][%cal Yg8f6,Yf6e4,Ye4d6,Yd6f5,Yf5e7,Ye7g6,Yg6f4]} 4.
O-O {[%emt 0:00:24][%cal Yh1f1,Yf1d1,Yd1d4]} Nxe4 {[%emt 0:00:09]} 5. d4 {
[%emt 0:00:08]} Nd6 {[%emt 0:00:06]} 6. Bxc6 {[%emt 0:00:00]} dxc6 {[%emt 0:00:
08]} 7. dxe5 {[%emt 0:00:06]} Nf5 {[%emt 0:00:10]} 8. Qxd8+ {[%emt 0:00:08]}
Kxd8 {[%emt 0:00:07]} 9. Rd1+ {[%emt 0:00:11]} Ke8 {[%emt 0:00:10]} 10. Nc3 {
[%emt 0:00:12]} Ne7 {[%emt 0:04:46]} 11. h3 {[%emt 0:00:00]} h6 {[%emt 0:03:33]
} 12. b3 {[%emt 0:01:19]} Ng6 {[%emt 0:05:37]} 13. Bb2 {[%emt 0:02:55] C67:
Ruy Lopez: Berlin Defence: 4 0-0 Nxe4.} Nf4 {[%emt 0:00:00]} 14. Rd4 {[%emt 0:
08:36]} Ne6 {[%emt 0:00:46]} 15. Rd2 {[%emt 0:00:07] The position is equal.}
Bb4 {[%emt 0:03:52]} 16. Rad1 {[%emt 0:08:57]} c5 {[%emt 0:00:48] [#]} 17. a3
$146 {[%emt 0:05:00]} (17. Nh4 {is more complex.} b6 18. f4 g5 19. fxg5 hxg5
20. Nf5) ({Predecessor:} 17. Nh2 b6 18. f4 Bb7 19. Rf2 c4 20. f5 Ng5 21. Nb5
Rc8 22. Nxa7 Rd8 23. Rxd8+ Kxd8 {0-1 (42) Xiong,J (2376) -Friedel,J (2485)
Wheeling 2013}) 17... Bxc3 {[%emt 0:00:13]} 18. Bxc3 {[%emt 0:00:04]} b6 {
[%emt 0:14:27]} 19. Nh4 {[%emt 0:03:31]} Bb7 {[%emt 0:00:00]} 20. f4 {[%emt 0:
13:31]} (20. Nf5 $11) 20... Nxf4 $15 {[%emt 0:07:31]} 21. e6 {[%emt 0:00:13]}
Nxe6 {[%emt 0:04:21]} 22. Nf5 {[%emt 0:00:24] [#]} Rg8 {[%emt 0:09:05]} (22...
Rh7 $1 $17 23. Rf2 Be4) 23. Rd7 {[%emt 0:06:29]} Bc6 {[%emt 0:00:48]} 24. Re7+
{[%emt 0:01:16]} Kf8 {[%emt 0:03:19] Threatens to win with ...Re8.} 25. Be5 $1
{[%emt 0:00:03]} g6 {[%emt 0:22:31] [#]} 26. Rxe6 $1 {[%emt 0:00:36]} fxe6 {
[%emt 0:00:07]} 27. Nxh6 {[%emt 0:00:03] aiming for Rf1+.} Ke7 {[%emt 0:00:23]
...Rgd8 is the strong threat.} 28. Nxg8+ {[%emt 0:00:09]} Rxg8 {[%emt 0:00:06]}
29. Bxc7 {[%emt 0:00:09]} Rh8 {[%emt 0:02:58]} (29... Rc8 $5 {[%cal Rc8c7]} 30.
Be5 c4 $11) 30. Bd6+ {[%emt 0:03:45]} Ke8 {[%emt 0:00:07]} 31. Bb8 {[%emt 0:00:
37] Weighted Error Value: White=0.14 (very precise) / Black=0.12 (very precise)
} 1/2-1/2

[Event "44th Chess Olympiad Open 2022"]
[Site "Chennai"]
[Date "2022.08.07"]
[Round "9.19"]
[White "Wojtaszek, Radoslaw"]
[Black "Amartuvshin, Ganzorig"]
[Result "1/2-1/2"]
[WhiteElo "2708"]
[BlackElo "2409"]
[Annotator "TA"]
[PlyCount "77"]
[EventDate "2022.??.??"]
[TimeControl "60"]

{[%evp 22,77,35,17,48,18,32,31,31,34,57,54,53,54,60,57,45,64,59,59,56,48,83,65,
63,38,50,27,42,27,35,19,27,15,45,34,38,0,0,0,0,0,59,54,46,0,0,0,0,-14,-8,-12,0,
0,0,-4,0,0]} 1. d4 {[%emt 0:00:02]} Nf6 {[%emt 0:00:07]} 2. c4 {[%emt 0:00:03]}
e6 {[%emt 0:00:09]} 3. Nf3 {[%emt 0:00:04]} Bb4+ {[%emt 0:00:07]} 4. Bd2 {
[%emt 0:00:06]} Qe7 {[%emt 0:00:16]} 5. g3 {[%emt 0:00:07]} Nc6 {[%emt 0:00:20]
} 6. Nc3 {[%emt 0:00:21]} Bxc3 {[%emt 0:00:41]} 7. Bxc3 {[%emt 0:00:08]} Ne4 {
[%emt 0:00:10]} 8. Rc1 {[%emt 0:00:12]} Nxc3 {[%emt 0:01:50]} 9. Rxc3 {[%emt 0:
00:00]} d6 {[%emt 0:00:26]} 10. d5 {[%emt 0:00:14]} Nd8 {[%emt 0:01:05]} 11.
Bg2 {[%emt 0:00:25]} O-O {[%emt 0:00:44]} 12. Qc2 {[%emt 0:00:58]} c6 {[%emt 0:
00:00] E11: Bogo-Indian.} 13. dxc6 {[%emt 0:01:42] [#]} bxc6 $146 {[%emt 0:00:
00]} ({Predecessor:} 13... Nxc6 14. O-O e5 15. e3 Be6 16. Rd1 Rac8 17. Ne1 Bg4
18. Rc1 g6 19. a3 Bf5 20. Qd1 {½-½ (51) Lautier,J (2687)-Chabanon,J (2483)
France 2002}) 14. O-O {[%emt 0:01:11]} e5 {[%emt 0:02:31] White is slightly
better.} 15. Rd1 {[%emt 0:09:39]} a5 {[%emt 0:19:44]} 16. Re3 {[%emt 0:15:56]
[%cal Yc4c5]} f6 {[%emt 0:17:31]} 17. Nd4 {[%emt 0:08:01]} Ra6 {[%emt 0:05:20]}
18. Nf5 {[%emt 0:06:00]} Bxf5 {[%emt 0:00:10]} 19. Qxf5 {[%emt 0:00:06]} g6 {
[%emt 0:03:16]} 20. Qd3 {[%emt 0:00:25]} c5 $1 {[%emt 0:00:23]} 21. Qd2 {
[%emt 0:00:51]} f5 {[%emt 0:00:53]} 22. Bd5+ {[%emt 0:02:03]} Kg7 {[%emt 0:00:
00]} 23. f4 {[%emt 0:01:30] White is more active.} Qf6 {[%emt 0:03:49]} 24. Rb3
{[%emt 0:03:58][%cal Ye3b3,Yb3b5,Yb5b6,Yb6d6]} a4 {[%emt 0:01:11]} 25. Rb5 {
[%emt 0:04:07]} Re8 {[%emt 0:00:41]} 26. e3 {[%emt 0:01:21]} exf4 {[%emt 0:02:
42]} 27. exf4 {[%emt 0:05:06]} Ra7 {[%emt 0:00:51]} 28. Rb6 {[%emt 0:00:45]}
Rae7 {[%emt 0:01:57]} 29. Qc3 {[%emt 0:00:49]} Qxc3 {[%emt 0:00:00]} 30. bxc3 {
[%emt 0:00:02]} Re2 {[%emt 0:00:27]} 31. a3 {[%emt 0:18:23]} Ra2 {[%emt 0:00:
27]} (31... R8e7 $11) 32. Rxd6 $14 {[%emt 0:00:27]} Rxa3 {[%emt 0:00:10]} 33.
Bg2 {[%emt 0:01:11]} (33. Kf1 $1 $14 {might be stronger.}) 33... Nf7 $11 {
[%emt 0:01:21] The position is equal.} 34. Rd7 {[%emt 0:00:01] [#] aiming for
Bd5.} Kf8 {[%emt 0:01:08]} ({But not} 34... Rxc3 35. Bd5 Rf8 36. Re1 $16) 35.
Ra7 {[%emt 0:04:13] And now Rdd7 would win.} Re7 {[%emt 0:00:23]} 36. Ra8+ {
[%emt 0:00:57]} Re8 {[%emt 0:00:46] Strongly threatening ...Rxa8.} 37. Ra7 {
[%emt 0:01:54] Rdd7 is the strong threat.} Re7 {[%emt 0:00:07]} 38. Ra8+ {
[%emt 0:00:04]} Re8 {[%emt 0:00:14] [#] Hoping for ...Rxa8.} 39. Ra7 {[%emt 0:
04:13] Weighted Error Value: White=0.10 (very precise) /Black=0.11 (very
precise)} 1/2-1/2

[Event "44th Chess Olympiad Open 2022"]
[Site "Chennai"]
[Date "2022.08.07"]
[Round "9.19"]
[White "Moranda, Wojciech"]
[Black "Bilguun, Sumiya"]
[Result "1/2-1/2"]
[WhiteElo "2636"]
[BlackElo "2463"]
[Annotator "TA"]
[PlyCount "72"]
[EventDate "2022.??.??"]
[TimeControl "60"]

{[%evp 14,72,16,21,50,50,52,49,64,56,59,60,56,10,79,79,72,81,96,47,67,65,52,56,
49,54,57,44,62,0,0,0,0,0,0,-28,-3,-9,-6,-6,-11,-27,-25,-25,-6,-12,-4,-19,-17,
-16,-9,-36,-27,-29,-9,-9,-8,-16,-12,-14,-21]} 1. e4 {[%emt 0:00:04]} c5 {
[%emt 0:00:12]} 2. Nf3 {[%emt 0:00:11]} d6 {[%emt 0:00:25]} 3. d4 {[%emt 0:00:
00]} cxd4 {[%emt 0:00:06]} 4. Nxd4 {[%emt 0:00:06]} Nf6 {[%emt 0:00:05]} 5. Nc3
{[%emt 0:00:08]} a6 {[%emt 0:00:04]} 6. Bd3 {[%emt 0:00:38]} g6 {[%emt 0:03:23]
} 7. f3 {[%emt 0:00:44]} Bg7 {[%emt 0:01:00]} 8. Be3 {[%emt 0:00:29]} h5 {
[%emt 0:00:25] B72: Sicilian Dragon: 6 Be3, lines with h3+Bc4 and sidelines.}
9. Qd2 {[%emt 0:04:38]} Nbd7 {[%emt 0:03:13][%cal Yb8d7,Yd7e5,Ye5c6,Yc6b4,
Yb4d5]} 10. O-O {[%emt 0:07:16] [#]} h4 $146 {[%emt 0:04:38] White is slightly
better.} ({Predecessor:} 10... b5 11. a4 b4 12. Nd5 Nxd5 13. exd5 Qc7 14. Qxb4
Rb8 15. Qc3 Qb7 16. b3 Qxd5 {0-1 (23) Livaic,L (2507)-Bortnyk,O (2598) Chess.
com INT 2021}) 11. a4 {[%emt 0:12:05] White is more active.} Ne5 {[%emt 0:16:
31]} 12. Be2 {[%emt 0:11:22]} Bd7 {[%emt 0:05:45]} 13. Nd5 {[%emt 0:00:00]} (
13. h3 $14 {was preferrable.}) 13... Rc8 {[%emt 0:03:08]} (13... h3 $11 {
keeps the balance.}) 14. b3 $16 {[%emt 0:01:47]} e6 {[%emt 0:05:37]} 15. Nxf6+
{[%emt 0:07:12]} Bxf6 {[%emt 0:00:17]} 16. f4 {[%emt 0:10:02]} (16. Rad1 $16)
16... Nc6 $14 {[%emt 0:00:12]} 17. Rad1 {[%emt 0:00:40]} Qa5 {[%emt 0:00:00]}
18. Nf3 {[%emt 0:02:34]} Qxd2 {[%emt 0:02:20]} 19. Rxd2 {[%emt 0:00:15]} Nb4 {
[%emt 0:05:23]} 20. Bd1 {[%emt 0:03:48]} d5 {[%emt 0:07:03]} 21. exd5 {[%emt 0:
09:19]} (21. Ne5 $1 $14) 21... Nxd5 $11 {[%emt 0:02:55]} (21... Bc3 {feels
hotter.} 22. Bd4 Bxd2 23. Nxd2 O-O) 22. Bd4 {[%emt 0:00:10]} Bxd4+ {[%emt 0:05:
59]} 23. Nxd4 {[%emt 0:02:15]} b5 {[%emt 0:06:54] Inhibits c4.} 24. a5 {
[%emt 0:01:08]} Ne3 {[%emt 0:00:56]} (24... Ke7 {is interesting.} 25. f5 exf5
26. Nxb5 Rc5) 25. Re1 {[%emt 0:00:55]} Nxd1 {[%emt 0:00:06]} 26. Rexd1 {
[%emt 0:00:23][%cal Ye1d1,Yd1d2,Yd2e2]} b4 {[%emt 0:01:16]} 27. Ne2 {[%emt 0:
04:42]} Bc6 {[%emt 0:01:59]} 28. Rd4 {[%emt 0:04:39]} Bb5 {[%emt 0:00:00][%csl
Yc2,Ye2]} 29. R1d2 {[%emt 0:00:56]} Rh5 {[%emt 0:02:53]} 30. Rxb4 {[%emt 0:00:
22]} (30. g4 {with more complications.} hxg3 31. Nxg3 Rd5 32. Rxd5 exd5 33. f5)
30... Bxe2 {[%emt 0:00:09]} 31. Rxe2 {[%emt 0:00:11]} Rxa5 {[%emt 0:00:15]
KRR-KRR} 32. f5 {[%emt 0:02:16]} Rxf5 {[%emt 0:03:54]} 33. Rxh4 {[%emt 0:00:09]
} Rc3 {[%emt 0:01:25]} 34. Rh8+ {[%emt 0:01:01] The position is equal.} Ke7 {
[%emt 0:00:12]} 35. Ra8 {[%emt 0:00:05]} Rfc5 {[%emt 0:01:34]} 36. Ra7+ {
[%emt 0:02:41]} Rc7 {[%emt 0:01:49] Weighted Error Value: White=0.11 (very
precise) /Black=0.09 (flawless)} 1/2-1/2

[Event "44th Chess Olympiad Open 2022"]
[Site "Chennai"]
[Date "2022.08.07"]
[Round "9.19"]
[White "Gundavaa, Bayarsaikhan"]
[Black "Piorun, Kacper"]
[Result "0-1"]
[WhiteElo "2503"]
[BlackElo "2636"]
[Annotator "TA"]
[PlyCount "104"]
[EventDate "2022.??.??"]
[TimeControl "60"]

{[%evp 9,104,21,45,25,22,-17,-5,-3,-13,0,0,0,9,0,0,-55,-56,-63,-57,-56,-61,-83,
-76,-78,-87,-88,-84,-110,-116,-139,-135,-174,-160,-147,-158,-148,-139,-173,
-192,-183,-143,-208,-143,-135,-102,-96,-84,-80,-60,-116,-128,-116,-51,-72,-47,
-45,-51,-312,-313,-319,-91,-103,-71,-68,-27,-49,-49,-85,-50,-47,-99,-118,-120,
-202,-186,-237,-166,-752,-775,-836,-767,-691,-582,-512,-426,-29979,-29980,
-29983,-29984,-29983,-1645,-2205,-2142,-29981,-29982,-29977,-29978]} 1. d4 {
[%emt 0:00:03]} f5 {[%emt 0:00:08]} 2. Nc3 {[%emt 0:01:46]} Nf6 {[%emt 0:00:14]
} 3. Bg5 {[%emt 0:00:34]} d5 {[%emt 0:00:06]} 4. e3 {[%emt 0:00:46]} e6 {
[%emt 0:00:43]} 5. Nf3 {[%emt 0:01:10]} Nbd7 {[%emt 0:00:07]} 6. Bd3 {[%emt 0:
00:00] A80: Dutch Defence: Unusual White second moves.} c5 {[%emt 0:00:13]} 7.
dxc5 {[%emt 0:02:43]} Nxc5 {[%emt 0:00:37]} 8. O-O {[%emt 0:00:54] The
position is equal.} a6 {[%emt 0:03:48] Prevents Bb5+.} 9. Ne2 {[%emt 0:07:00]}
Bd6 {[%emt 0:01:01]} 10. Bf4 {[%emt 0:12:10] Against e5} b5 {[%emt 0:01:13] [#]
Against c4} 11. Ned4 $146 {[%emt 0:22:14]} ({Predecessor:} 11. c3 Qc7 12. Bxd6
Qxd6 13. Bc2 Bd7 14. Qd4 O-O 15. Ne5 Be8 16. c4 bxc4 17. Nxc4 {1-0 (45) Markus,
R (2595)-Urriza Iricibar,P (2315) Benasque 2019}) 11... O-O {[%emt 0:06:49]}
12. c3 {[%emt 0:03:03]} (12. Be2 $11) 12... Qc7 $15 {[%emt 0:04:16]} 13. Bxd6 {
[%emt 0:00:00]} Qxd6 {[%emt 0:00:03]} 14. Bc2 {[%emt 0:04:56]} Bd7 {[%emt 0:00:
00]} 15. Nb3 {[%emt 0:05:32]} Na4 $1 {[%emt 0:03:00]} 16. Rb1 {[%emt 0:01:59]}
e5 {[%emt 0:06:14] Prevents Qd4.} 17. Nh4 {[%emt 0:00:00]} g6 {[%emt 0:11:15]}
18. Kh1 {[%emt 0:03:56]} Nb6 {[%emt 0:04:05]} 19. Na5 {[%emt 0:06:53]} Rae8 {
[%emt 0:10:32]} 20. f3 {[%emt 0:05:34]} e4 {[%emt 0:12:48]} 21. g3 {[%emt 0:00:
00]} exf3 {[%emt 0:02:36]} 22. Rxf3 {[%emt 0:00:10]} Qc7 {[%emt 0:00:46] ...
Nc4 is the strong threat.} 23. Qd4 {[%emt 0:01:39]} Nc4 {[%emt 0:01:22]} 24.
Nb3 {[%emt 0:00:24]} Bc6 {[%emt 0:07:30][%cal Yc4e3] Hoping for ...Nxe3!} 25.
Kg1 {[%emt 0:01:31]} (25. Ng2 $17) 25... Ng4 {[%emt 0:00:58][%cal Re8e3]} 26.
Ng2 {[%emt 0:01:12]} Ba8 {[%emt 0:07:18] 0x0.001681624fa2dp-1022s more active
pieces. The white rooks are badly placed.} 27. Nc5 {[%emt 0:02:29]} Rf6 {
[%emt 0:04:24][%cal Ye8e4]} 28. b4 {[%emt 0:00:15]} Rd6 {[%emt 0:01:57][%cal
Ye8e4] Threatens to win with ...Re4!} 29. Re1 {[%emt 0:02:20] [#]} (29. Rf4 $15
) 29... Re4 $1 $17 {[%emt 0:00:31]} 30. Qd1 {[%emt 0:01:13] [#]} Qg7 {[%emt 0:
00:47]} (30... a5 $1 $17 {[%cal Yc4e5] aiming for ...Nce5!} 31. h3 (31. a4 Nce5
) 31... Nf6) 31. h3 {[%emt 0:01:25]} Nh6 {[%emt 0:00:13][%cal Yg7c3,Yg4h6,
Yh6f7,Yf7g5]} 32. Bb3 {[%emt 0:01:05] [#]} ({Don't go for} 32. Nxe4 $2 dxe4 33.
Rf2 Rxd1 $19) 32... Nf7 $1 {[%emt 0:00:09][%cal Yg7c3]} 33. Qc1 {[%emt 0:00:38]
} (33. Rff1 $15) (33. Rf2 Re8) 33... Ng5 $1 $19 {[%emt 0:03:18][%csl Yf3,Yh3]}
34. Rff1 {[%emt 0:00:28]} Re7 $2 {[%emt 0:00:00]} (34... Nxh3+ $19 35. Kh2 {[#]
} Qh6 $1 36. Nxe4 Ng5+ 37. Kg1 Nxe4) 35. h4 $17 {[%emt 0:00:54]} Ne4 {[%emt 0:
00:31]} 36. Nxe4 {[%emt 0:00:26]} dxe4 {[%emt 0:00:08]} 37. Rd1 {[%emt 0:00:08]
} Rd3 {[%emt 0:00:21]} 38. Qa3 {[%emt 0:00:00]} Bb7 {[%emt 0:00:55]} ({Don't do
} 38... Qxc3 39. Qxa6 Bd5 40. Qxb5 Nxe3 41. Rxd3 Qxd3 42. Qxd3 exd3 43. Nxe3
Bxb3 44. Nxf5 gxf5 45. axb3 $11) 39. Bxc4+ {[%emt 0:00:45]} bxc4 {[%emt 0:00:
02]} 40. Rc1 {[%emt 0:00:17]} Qe5 {[%emt 0:00:00]} 41. Rf4 {[%emt 0:03:45]} (
41. Kh2 $17) 41... Red7 $36 {[%emt 0:04:45][%cal Ye7d7,Yd7d2,Yd2e2] Keeping
White busy.} 42. Rc2 {[%emt 0:00:00]} (42. Rcf1 $142) 42... h6 {[%emt 0:02:55]}
43. Kh2 $2 {[%emt 0:08:07]} (43. Qa5 Qd6 44. Kh2) 43... g5 $19 {[%emt 0:05:06]}
44. Rf1 {[%emt 0:01:40]} gxh4 {[%emt 0:02:38]} 45. Nxh4 {[%emt 0:01:25]} Rxe3 {
[%emt 0:00:06]} 46. Rg2 {[%emt 0:01:58]} Rd2 {[%emt 0:03:34]} 47. Rf4 {[%emt 0:
05:34]} (47. Qa5 $19 Rxg2+ 48. Nxg2 Qxa5 49. bxa5 Rxc3 50. Rb1) 47... Ree2 {
[%emt 0:04:04]} 48. Rxe2 {[%emt 0:04:42]} Rxe2+ {[%emt 0:00:02]} 49. Kh3 {
[%emt 0:00:06]} e3 {[%emt 0:00:00]} (49... Re1 $142 50. Qb2 Rh1+ 51. Qh2 Rxh2+
52. Kxh2 e3 53. Rxf5 Qxc3 54. Rf4 e2 55. Rg4+ Kh7 56. Ng6 e1=Q 57. Nf8+ Kh8 58.
Ng6+ Kg7 59. Nf4+ Kh7 60. Rg7+ Qxg7 61. g4 Qxg4 62. Nh3 Qh1#) 50. Qc1 {[%emt 0:
01:48]} Rd2 {[%emt 0:00:00]} 51. Rd4 {[%emt 0:02:17]} Rxd4 {[%emt 0:02:54]} 52.
cxd4 {[%emt 0:00:05]} Qd5 {[%emt 0:00:05] Weighted Error Value: White=0.72/
Black=0.26 (precise)} 0-1

[Event "44th Chess Olympiad Open 2022"]
[Site "Chennai"]
[Date "2022.08.07"]
[Round "9.19"]
[White "Gan-Erdene, Sugar"]
[Black "Bartel, Mateusz"]
[Result "0-1"]
[WhiteElo "2428"]
[BlackElo "2597"]
[Annotator "TA"]
[PlyCount "92"]
[EventDate "2022.??.??"]
[TimeControl "60"]

{[%evp 9,92,37,47,47,29,0,0,0,11,0,0,0,0,-29,-13,-36,-29,-18,-29,-29,-29,-30,
-26,-35,0,0,0,0,0,0,0,-9,0,0,0,0,54,35,62,0,169,163,235,200,241,231,218,193,
213,0,25,39,20,37,144,-258,-236,-250,-227,-279,-288,-418,-410,-618,-614,-607,
-587,-732,-665,-725,-702,-826,-815,-770,-689,-2020,-1917,-1442,-1210,-1086,
-955,-5206,-1938,-12841,-2502]} 1. d4 {[%emt 0:00:03]} d5 {[%emt 0:00:03]} 2.
c4 {[%emt 0:00:18]} dxc4 {[%emt 0:00:07]} 3. e3 {[%emt 0:04:08]} e5 {[%emt 0:
00:00]} 4. Bxc4 {[%emt 0:02:02]} Nc6 {[%emt 0:00:08]} 5. Nf3 {[%emt 0:08:12]}
e4 {[%emt 0:02:08]} 6. Nfd2 {[%emt 0:02:20] D20: Queen's Gambit Accepted: 3 e3
and 3 e4.} Qg5 {[%emt 0:00:09]} 7. g3 {[%emt 0:12:59]} Qg6 $5 {[%emt 0:01:32]
A promising side line.} 8. Nc3 {[%emt 0:02:07] The position is equal.} Nf6 {
[%emt 0:02:36]} 9. a3 {[%emt 0:09:18]} Bd6 {[%emt 0:05:27]} 10. Nd5 {[%emt 0:
01:25]} Ng4 {[%emt 0:12:01] [#]} 11. Be2 $146 {[%emt 0:16:31]} ({Predecessor:} 
11. b4 h5 12. Nf4 Bxf4 13. gxf4 Bd7 14. Bb2 O-O-O 15. Qb3 h4 16. Bxf7 Qf5 17.
h3 Nf6 18. O-O-O a5 19. Rhg1 Qb5 20. Bc4 Qb6 21. d5 {1-0 (21) Arnaudov,P (2474)
-Bredl,H (2347) Germany 2017}) 11... h5 {[%emt 0:08:13][%cal Yh7h5,Yh5h4]
Threatening ...h4.} 12. Nc4 {[%emt 0:08:18]} h4 {[%emt 0:00:00]} 13. Nxd6+ {
[%emt 0:08:09]} Qxd6 {[%emt 0:02:15]} 14. Bxg4 {[%emt 0:00:00]} Qxd5 {[%emt 0:
05:14]} 15. Bxc8 {[%emt 0:00:06]} Rxc8 {[%emt 0:00:20]} 16. Qg4 {[%emt 0:00:12]
[%csl Yc8,Yg7,Yh4]} Rd8 {[%emt 0:05:28]} 17. Qxg7 {[%emt 0:03:42]} Kd7 {
[%emt 0:01:21]} 18. Qf6 {[%emt 0:02:59] Prevents Qf5.} Kc8 {[%emt 0:04:23]} 19.
Bd2 {[%emt 0:01:20]} (19. gxh4 $2 Rh5 20. Rg1 Ne5 $1 21. Qxd8+ Kxd8 22. dxe5
Qxe5 $19) 19... Rh5 {[%emt 0:06:52] ... hxg3 is the strong threat.} 20. Bc3 {
[%emt 0:06:53]} (20. gxh4 $2 Rf5 21. Qg7 Ne5 $1 $19) 20... Rg8 {[%emt 0:03:43]}
21. O-O-O {[%emt 0:01:38]} (21. gxh4 $2 Rg6 22. Qf4 Rf5 $19) 21... Rf5 {
[%emt 0:15:53]} 22. Qxh4 {[%emt 0:00:00]} b5 {[%emt 0:00:10]} (22... Rh5 $1 $11
23. Qf4 Rf5) 23. Qh3 $14 {[%emt 0:01:54] aiming for Kb1.} Kb7 {[%emt 0:00:06]}
24. Rd2 {[%emt 0:01:00]} ({White should play} 24. Qf1 $14) 24... a5 $2 {
[%emt 0:00:06] [#]} (24... b4 $11 {and Black is okay.} 25. axb4 (25. Bxb4 Nxb4
26. axb4 Rg6 $11) 25... a5) 25. Rc2 $1 $18 {[%emt 0:01:29]} b4 {[%emt 0:00:20]}
(25... Rgg5 $142) 26. Be1 {[%emt 0:01:02] Black must now prevent Rc5.} Rgg5 {
[%emt 0:05:03] Hoping for ... Qa2.} 27. Qf1 {[%emt 0:00:40]} Qd6 {[%emt 0:00:
07]} 28. a4 {[%emt 0:01:44]} Rd5 {[%emt 0:00:01][%cal Yc6d4]} 29. Qc4 {[%emt 0:
01:05]} ({White should try} 29. Bd2 $18) 29... Ne5 {[%emt 0:00:23][%cal Yc6e5,
Ye5f3,Yf3h2]} 30. Qb3 {[%emt 0:00:54] Threatens to win with Bxb4.} c5 {[%emt 0:
01:09] Strongly threatening ...c4.} 31. Kb1 {[%emt 0:00:33]} cxd4 {[%emt 0:03:
24]} (31... c4 $1 $14 32. Rxc4 Nxc4 33. Qxc4 Rg8) 32. Bd2 $2 {[%emt 0:00:23]
This costs White the game.} (32. exd4 $16 {is forced if you want to stay
better.} Nc6 33. Bd2 (33. Qc4 Rxd4 34. Qxf7+ Kb6 $17) 33... Nxd4 34. Qc4 Nxc2
35. Bxg5) 32... d3 $19 {[%emt 0:00:56]} 33. Rcc1 {[%emt 0:00:15]} Rf5 {[%emt 0:
01:53]} ({And not} 33... Nf3 34. Rhd1 $17) 34. f4 {[%emt 0:00:24]} Nf3 {
[%emt 0:01:06]} 35. Rhd1 {[%emt 0:00:14]} (35. Rcd1 $142 Qc5 36. g4) 35... Rc5
{[%emt 0:00:23]} 36. g4 {[%emt 0:01:07]} (36. Rxc5 $142 Qxc5 37. g4) 36... Qd5
{[%emt 0:04:58] Black is clearly winning.} 37. Qxd5+ {[%emt 0:00:35]} Rfxd5 {
[%emt 0:00:02][%cal Yf5d5,Yd5c5,Yc5c3]} 38. b3 {[%emt 0:00:28]} Nxh2 {[%emt 0:
00:14]} 39. g5 {[%emt 0:00:30]} Nf3 {[%emt 0:00:05]} 40. Rxc5 {[%emt 0:00:29]}
Rxc5 {[%emt 0:00:05] Endgame KRB-KRN} 41. Bc1 {[%emt 0:04:03]} Kc6 {[%emt 0:02:
43]} 42. Rh1 {[%emt 0:05:05]} d2 {[%emt 0:06:14]} 43. Bxd2 {[%emt 0:00:00]}
Nxd2+ {[%emt 0:00:06]} 44. Kb2 {[%emt 0:00:03]} Rc3 {[%emt 0:00:05]} 45. f5 {
[%emt 0:01:48]} Rxe3 {[%emt 0:00:28]} (45... Rxb3+ $142 46. Kc2 Rd3 47. Rh6+
Kd5) 46. Rg1 {[%emt 0:01:14]} Re2 {[%emt 0:03:09] Weighted Error Value:
White=0.80/Black=0.30} 0-1